Cogmind - Beta 13 @@@ ROGUE MODE // 2024.07.04 @ 20:00:34 Player: maykstuff Result: Destroyed by G-47 Trooper with Particle Gun Performance ------------- Evolutions (2) 1000 Regions Visited (3) 600 Robots Destroyed (66) 330 Value Destroyed (1634) 1634 Prototype IDs (8) 160 Alien Tech Used (0) 0 Bonus (214) 214 TOTAL SCORE: 3938 Bonus ------- High Alert Combat Kills 214 Cogmind --------- Core Integrity 0/550 Matter 3/300 Energy 80/100 System Corruption 6% Temperature Cool (63) Movement Core (400) Ox7 Location -8/Materials Parts ------- > --- POWER (1) -------- (None) > --- PROPULSION (4) --- (None) > --- UTILITY (4) ------ Large Storage Unit Salvage Targeting Computer > --- WEAPON (2) ------- Advanced Beam Cannon > --- INVENTORY (15) --- Light Treads High-capacity Storage Unit Minigun Grenade Launcher Grenade Launcher Datajack Maul Maul Peak State ------------ > --- POWER ------------ Heavy Ion Engine > --- PROPULSION ------- Wheel Wheel Armored Wheel Armored Wheel > --- UTILITY ---------- Seismic Detector Salvage Targeting Computer > --- WEAPON ----------- Improved Assault Rifle Maul > --- INVENTORY -------- Flight Unit Advanced Beam Cannon Advanced Beam Cannon Improved Assault Rifle Maul [Rating: 18] Favorites ----------- Power Heavy Ion Engine Engine Heavy Ion Engine Propulsion Wheel Wheel Wheel Flight Unit Flight Unit Utility Salvage Targeting Computer Device Seismic Detector Storage Small Storage Unit Processor Salvage Targeting Computer Protection Light Armor Plating Weapon Maul Energy Gun Improved Medium Laser Energy Cannon Advanced Beam Cannon Ballistic Gun Assault Rifle Ballistic Cannon Light Cannon Launcher Mini Grenade Launcher Impact Weapon Maul Build | -11 -10 -9 -8 ------- Run | Yrd Mat Mat Mat Slots Evolved 4 | . . 2 2 Power . | . . . . Propulsion 2 | . . 2 . Utility 2 | . . . 2 Weapon . | . . . . Parts Attached 52 | 7 5 37 3 Power 4 | 1 1 2 . Engine 4 | 1 1 2 . Core . | . . . . Reactor . | . . . . Propulsion 15 | 2 2 11 . Treads . | . . . . Leg . | . . . . Wheel 9 | 2 2 5 . Hover . | . . . . Flight 6 | . . 6 . Utility 11 | 2 . 8 1 Device 4 | 1 . 3 . Storage 3 | 1 . 2 . Processor 1 | . . 1 . Hackware . | . . . . Protection 3 | . . 2 1 Artifact . | . . . . Weapon 22 | 2 2 16 2 Energy Gun 1 | . . 1 . Energy Cannon 2 | . . 1 1 Ballistic Gun 4 | 2 1 1 . Ballistic Cannon 3 | . 1 2 . Launcher 7 | . . 6 1 Special Weapon . | . . . . Impact Weapon 5 | . . 5 . Slashing Weapon . | . . . . Piercing Weapon . | . . . . Special Melee Weapon . | . . . . Unidentified Prototypes 4 | . . 4 . Parts Lost 22 | . . 15 7 Power 3 | . . 2 1 Propulsion 10 | . . 7 3 Utility 5 | . . 4 1 Weapon 4 | . . 2 2 Highest Loss Streak 7 | . . 4 7 To Critical Strikes . | . . . . Average Slot Usage (%) 83 | . 100 88 40 Engine 9 | . 14 10 2 Wheel 26 | . 28 29 7 Flight 4 | . . 5 . Device 7 | . 14 6 . Storage 4 | . 14 1 9 Processor 8 | . . 9 9 Protection 2 | . . 2 3 Ballistic Gun 2 | . 18 . . Ballistic Cannon 2 | . 9 1 . Launcher 4 | . . 5 5 Impact Weapon 10 | . . 13 1 Naked Turns . | . . . . Heaviest Build 55 | 15 18 55 38 Greatest Support 44 | 20 24 44 32 Greatest Overweight (x) 7 | 2 . 1 7 Average Overweight (x) . | . . . 2 Largest Inventory Capacity 20 | 8 8 20 15 Average Capacity 8 | 7 8 6 15 Most Carried 9 | 4 8 7 9 Average Carried 5 | 2 6 4 7 Final Capacity 15 | 8 8 15 15 Final Carried 8 | 4 8 7 8 Class Distribution -------------------- 98% | Mutant Dominant Class ---------------- Mutant | -10/Materials Mutant | -9/Materials Mutant | -8/Materials Resources | -11 -10 -9 -8 ----------- Run | Yrd Mat Mat Mat Matter Collected 1014 | 300 115 589 10 Remotely 267 | 94 115 58 . Salvage Created 1526 | 93 126 1098 209 Parts 95 | 2 12 72 9 Haulers Intercepted 2 | . . 2 . Recyclers Shooed 2 | . 1 1 . Parts Field Recycled . | . . . . Retrieved Matter . | . . . . Parts Self-Destructed . | . . . . Prevented . | . . . . Kills | -11 -10 -9 -8 ------- Run | Yrd Mat Mat Mat Combat Hostiles Destroyed 48 | . 6 38 4 Melee 6 | . . 6 . Guns 5 | . 3 2 . Cannons 7 | . 3 2 2 AOE 24 | . . 22 2 Classes Destroyed 10 | 1 2 7 . Worker 4 | . . 4 . Builder 4 | . . 4 . Hauler 2 | . . 2 . Recycler 3 | 1 . 1 1 Operator 1 | . . 1 . Watcher 4 | . . 4 . Swarmer 16 | . 3 13 . Grunt 20 | . 3 15 2 Duelist 1 | . . 1 . Sentry 11 | . . 9 2 Best Kill Streak 14 | 1 4 14 2 Combat Bots Only 10 | . 4 10 1 Max Kills in Single Turn 6 | 1 2 6 1 Gunslinging . | . . . . Exploded 3 | . . 3 1 Melee 1 | . . 1 . Uniques/NPCs Destroyed . | . . . . Combat | -11 -10 -9 -8 -------- Run | Yrd Mat Mat Mat Hostile Shots Fired 236 | . 19 133 84 Missed 77 | . 3 48 26 Damage Taken 2631 | . 133 1211 1287 Core 906 | . 20 324 562 Absorbed by Shields . | . . . . Core Remaining (%) 70 | 100 92 19 . Volleys Fired 89 | 5 11 50 23 Largest 2 | 2 2 2 2 Hottest 91 | 40 55 91 68 Shots Fired 126 | 10 22 68 26 Gun 36 | 10 11 15 . Cannon 42 | . 11 17 14 Launcher 48 | . . 36 12 Special . | . . . . Kinetic 49 | 10 22 17 . Thermal 29 | . . 15 14 Explosive 48 | . . 36 12 Electromagnetic . | . . . . Robot Hit Streak 8 | 5 6 8 6 Robot Miss Streak 5 | 2 3 5 2 Penetration Max . | . . . . Secondary Targets . | . . . . Shots Hit Robots 93 | 6 12 56 19 Core Hits 96 | 2 8 73 13 Critical Kills 2 | . . 2 . Critical Parts Destroyed 9 | . . 9 . Critical Strikes 11 | . . 11 . Smash 11 | . . 11 . Melee Attacks 30 | . . 30 . Impact 30 | . . 30 . Slashing . | . . . . Piercing . | . . . . Sneak Attacks 2 | . . 2 . Combat Hostiles . | . . . . Follow-up Attacks 3 | . . 3 . Damage Inflicted 4110 | 70 223 3360 457 Guns 249 | 70 96 83 . Cannons 511 | . 127 160 224 Explosions 2408 | . . 2175 233 Melee 942 | . . 942 . Ramming . | . . . . Kinetic 453 | 70 223 160 . Thermal 307 | . . 83 224 Explosive 2408 | . . 2175 233 Electromagnetic . | . . . . Impact 942 | . . 942 . Slashing . | . . . . Piercing . | . . . . Highest Corruption 6 | . . 2 6 Average Corruption 2 | . . 1 6 Corruption Purged . | . . . . Corruption Blocked . | . . . . Effects 14 | . . 8 6 Message Errors 3 | . . 1 2 Matter Fused 6 | . . 5 1 Heat Flow Errors 1 | . . 1 . Data Loss (minor) 2 | . . . 2 Data Loss (major) 1 | . . . 1 Alerts 1 | . . 1 . Overload Shots . | . . . . Overflow Damage 499 | . . 484 15 Projectiles . | . . . . Explosions 63 | . . 48 15 Melee 436 | . . 436 . Knockbacks 4 | . 1 3 . Impact 2 | . . 2 . Kinetic 2 | . 1 1 . Secondary . | . . . . Self-Inflicted Damage 217 | . . 161 56 Shots 8 | . . 5 3 Rammed 2 | . . . 2 Targets Rammed 2 | . . . 2 Kicked . | . . . . Crushed . | . . . . Highest Temperature 302 | . 8 302 174 Average Temperature 79 | . 4 94 59 Received Heat Transfer 756 | . 24 291 441 Siege Activations . | . . . . Robots Corrupted . | . . . . Combat Hostiles . | . . . . Parts Fried 14 | . . 14 . Impact Corruptions 16 | . . 16 . Robots Melted . | . . . . Combat Hostiles . | . . . . Parts Melted . | . . . . Heat Transferred 592 | . . 185 407 Parts Sabotaged . | . . . . Parts Stolen . | . . . . Parts Stripped . | . . . . Power Chain Reactions . | . . . . Alert | -11 -10 -9 -8 ------- Run | Yrd Mat Mat Mat Peak Influence 977 | 5 159 977 365 Initial 365 | . 3 66 365 Average 426 | . 50 555 286 Maximum Alert Level 3 | . . 3 1 Low Security (%) 22 | 100 100 5 . Level 1 27 | . . 21 100 Level 2 33 | . . 48 . Level 3 17 | . . 24 . Level 4 . | . . . . Level 5 . | . . . . High Security . | . . . . Max Security . | . . . . Squads Dispatched 12 | . 1 6 5 Investigation 4 | . . 3 1 Extermination . | . . . . Reinforcement 6 | . 1 2 3 Assault 1 | . . 1 . Garrison 1 | . . . 1 Intercept . | . . . . Searches Triggered . | . . . . Construction Impeded 1 | . . . 1 Haulers Reinforced . | . . . . Active Scanning Responses . | . . . . Cargo Convoy Interrupts . | . . . . Stealth | -11 -10 -9 -8 --------- Run | Yrd Mat Mat Mat Distress Signals 8 | . 2 4 2 Communications Jammed . | . . . . Distress Signals . | . . . . Times Spotted 63 | . 8 44 11 Peak Tracking Total 9 | . 4 9 5 Tactical Retreats . | . . . . Traps | -11 -10 -9 -8 ------- Run | Yrd Mat Mat Mat Traps Triggered 1 | . . 1 . Indirectly . | . . . . Trap Hack Attempts . | . . . . Triggered . | . . . . Disarmed . | . . . . Reprogrammed . | . . . . Reused . | . . . . Traps Extracted . | . . . . Installed . | . . . . Triggered . | . . . . Machines | -11 -10 -9 -8 ---------- Run | Yrd Mat Mat Mat Machines Disabled 10 | . . 8 2 Max in Single Turn 2 | . . 2 1 Machines Repaired . | . . . . Machines Dismantled . | . . . . Machines Sabotaged . | . . . . Overloaded Fab Kills . | . . . . Hacking | -11 -10 -9 -8 --------- Run | Yrd Mat Mat Mat Machines Accessed 14 | . 2 11 1 Terminals 12 | . 2 9 1 Fabricators . | . . . . Repair Stations . | . . . . Recycling Units 1 | . . 1 . Scanalyzers 1 | . . 1 . Garrison Access . | . . . . Total Hacks 37 | . 5 27 5 Successful 21 | . 5 13 3 Failed 16 | . . 14 2 Catastrophic 1 | . . 1 . Database Lockouts . | . . . . Manual 4 | . . 4 . Terminals 30 | . 5 20 5 Fabricators . | . . . . Repair Stations . | . . . . Recycling Units 3 | . . 3 . Scanalyzers 4 | . . 4 . Garrison Access . | . . . . Terminal Hacks 17 | . 5 9 3 Prototype ID Bank 3 | . . 2 1 Branch Access Points 1 | . . 1 . Emergency Access Points 1 | . . 1 . Alert Level 3 | . 2 . 1 Unreport Threat 3 | . 1 1 1 Locate Traps 3 | . 1 2 . Hauler Manifests 1 | . 1 . . Zone Layout 2 | . . 2 . Fabricator Hacks . | . . . . Repair Station Hacks . | . . . . Recycling Unit Hacks 1 | . . 1 . Retrieve Components 1 | . . 1 . Scanalyzer 3 | . . 3 . Insert Component 2 | . . 2 . Analyze 1 | . . 1 . Garrison Access Hacks . | . . . . Unauthorized Hacks . | . . . . Terminals . | . . . . Fabricators . | . . . . Repair Stations . | . . . . Recycling Units . | . . . . Scanalyzers . | . . . . Garrison Access . | . . . . Data Cores Recovered . | . . . . Used . | . . . . Hacking Detections 11 | . 2 8 1 Full Trace Events 5 | . 1 3 1 Feedback Events 1 | . . 1 . Corruption 1 | . . 1 . Feedback Blocked . | . . . . Robot Schematics Acquired . | . . . . Robots Built . | . . . . Authchips . | . . . . Time . | . . . . Total Robot Build Rating . | . . . . Part Schematics Acquired 1 | . . 1 . Parts Built . | . . . . Authchips . | . . . . Time . | . . . . Total Part Build Rating . | . . . . Parts Repaired . | . . . . Time . | . . . . Parts Recycled . | . . . . Recycled Matter . | . . . . Retrieved Matter . | . . . . Retrieved Components 5 | . . 5 . Parts Scanalyzed 1 | . . 1 . Part Schematics Acquired 1 | . . 1 . Parts Damaged . | . . . . Bothacking | -11 -10 -9 -8 ------------ Run | Yrd Mat Mat Mat Used RIF Installer . | . . . . Robots Hacked . | . . . . Non-combat . | . . . . Combat . | . . . . Robot Hacks Applied . | . . . . Relay Couplers Released . | . . . . Fabnet Peak Effective % . | . . . . Robots Rewired . | . . . . Allies Hacked . | . . . . Hacks Repelled . | . . . . Allies | -11 -10 -9 -8 -------- Run | Yrd Mat Mat Mat Total Allies . | . . . . Largest Group . | . . . . Highest-Rated Group . | . . . . Highest-Rated Ally . | . . . . Total Orders . | . . . . Ally Attacks . | . . . . Total Damage . | . . . . Kills . | . . . . Allies Corrupted . | . . . . Allies Melted . | . . . . Intel | -11 -10 -9 -8 ------- Run | Yrd Mat Mat Mat Robot Analysis Total . | . . . . Derelict Logs Recovered . | . . . . Drone Launches . | . . . . Drone Recoveries . | . . . . Exploration | -11 -10 -9 -8 ------------- Run | Yrd Mat Mat Mat Turns Passed 1798 | 77 256 1238 227 Spaces Moved 1526 | 59 252 1128 87 Core 36 | 7 . . 29 Treads . | . . . . Legs . | . . . . Wheels 1318 | 52 252 956 58 Hover . | . . . . Flight 172 | . . 172 . Fastest Speed 31 | 50 80 31 98 Average Speed 86 | 80 81 79 188 Slowest Speed 400 | 150 90 98 400 Overloaded Moves . | . . . . Propulsion Burnouts . | . . . . Robots Hopped 1 | . . 1 . Cave-ins Triggered 1 | . . . 1 Exploration Rate (%) 38 | 4 47 93 10 Regions Visited 3 Branch Regions . Pre-discovered Areas . | . . . . Known Exits Taken . | . . . . Unknown Exits Taken 3 | 1 1 1 . Scrap Searched . | . . . . Spaces Dug . | . . . . Terrain Destroyed 285 | . . 217 68 Melee . | . . . . Projectile 1 | . . 1 . AOE 284 | . . 216 68 Terrain Rammed . | . . . . Walls Destroyed . | . . . . Machines Disabled . | . . . . Actions | -11 -10 -9 -8 --------- Run | Yrd Mat Mat Mat Total 1811 | 74 285 1334 118 Wait 69 | . 1 68 . Move 1521 | 58 251 1125 87 Hop 1 | . . 1 . Pick Up 30 | 4 8 15 3 Fast Attach 21 | 7 1 13 . Attach 8 | . . 6 2 Detach 1 | . 1 . . Swap 23 | . 4 18 1 Drop 21 | . 8 13 . Fire 89 | 5 11 50 23 Melee 25 | . . 25 . Ram 2 | . . . 2 Kick . | . . . . Crush . | . . . . Escape Stasis . | . . . . Rewire . | . . . . Trap . | . . . . Miscellaneous . | . . . . Route ------- -11/Scrapyard -10/Materials -9/Materials (discovered 4 exits: *Mat x3 / *Min) -8/Materials History --------- Turn | Location | Event 24 | -11/Scrapyard | Discovered new exit (range 16) 78 | -11/Scrapyard | Entered Materials 316 | -10/Materials | Discovered new exit (range 16) 331 | -10/Materials | Build established: Mutant 334 | -10/Materials | Entered another Materials area 334 | -9/Materials | Evolved 2 slots: Propulsion x2 360 | -9/Materials | Discovered new exit (range 12) 455 | -9/Materials | Destroyed 10 combat bots 463 | -9/Materials | Lost 4 parts (2n2u) 549 | -9/Materials | Lost 3 parts (2n1u) 603 | -9/Materials | Core integrity fell below 50% 608 | -9/Materials | Lost 3 parts (1p2n) 674 | -9/Materials | Discovered new exit (range 6) 734 | -9/Materials | Identified exit to Mines 1013 | -9/Materials | Discovered new exit (range 15) 1279 | -9/Materials | Core integrity fell below 20% 1434 | -9/Materials | Discovered new exit (range 6) 1534 | -9/Materials | First assault squad dispatched 1572 | -9/Materials | Entered another Materials area 1572 | -8/Materials | Evolved 2 slots: Utility x2 1632 | -8/Materials | Crushed by falling debris 1685 | -8/Materials | Core integrity fell below 50% 1716 | -8/Materials | Lost 7 parts (1p3n1u2w) 1770 | -8/Materials | Garrison activated, responded to threat 1779 | -8/Materials | Core integrity fell below 20% 1799 | -8/Materials | Destroyed by G-47 Trooper with Particle Gun Last Messages --------------- 01738_ K-01 Serf collects debris. 01738_ U-05 Engineer builds a Wall. 01743_ System corrupted: Component data lost. 01749_ W-25 Informer sends out distress signal. 01762_ G-47 Trooper destroyed. 01764_ System corrupted: Component data lost. 01764_ Purification Channel disabled. 01769_ Critical hit (Burn: +37). 01770_ G-47 Trooper calls for garrison reinforcements. 01770_ ALERT: Activating Garrison Access M001. 01776_ Critical hit (Burn: +37). 01776_ K-01 Serf destroyed. 01779_ System corrupted: Matter fused (-5). 01784_ G-47 Trooper destroyed. 01784_ R-06 Scavenger collects Wheel. 01787_ R-06 Scavenger collects Particle Gun. 01795_ R-06 Scavenger collects Lgt. Nuclear Core. Map ----- +----------------------------------------------------+ | ???????????????????????????????????????????????? | | ???????????????????????????????????????????????? | | ???????????????????????????????????????????????? | | ???????????????????????????????????????????????? | | ???????????????????????????????????????????????? | | ???#?????????????????????????????????????#?????? | | ???# ??????????????????????????????????? ?????? | | ???# ??????##########?????????????????? ??????? | | ???# ??????# #????????????????? ???????? | | ???# #####?# #????????????????? #???????? | | ???# ?+ #???????????????? #???????? | | ???# # #########+###??? #???????? | | ???# # # #! #### #???????? | | ???# + # # ##??????? | | ???# #### # +??????? | | ???# #??# # ##??????? | | ???? #??# # """ # ########???????? | | ?????# ########+#### """ ## ## ######??????? | | ?????# T # """ # # ]#??????? | | ?????# + # # ! #??????? | | ?????# # """ ## + #??????? | | ?????### # """ ## # ] #??????? | | ???????# " # """ ## # ######??????? | | ???????# "" =%# ## #??????????? | | ???????# """ ####### # # #??????????? | | ???????# "" g @ # #??????????? | | ???????+ "" r g #####??????????? | | ???????# """ %=%= # #???????????? | | ???????# "" ########## # #???????????? | | ???????+ """ #????????# ### ##???????????? | | ???????# " #???????" ### #####????????????? | | ???????# #??????"" ??###????????????????? | | ???????# ? +?????""" ?????????????????????? | | ???????? ? #????? ?????????????????????? | | ???????? ?? ?????? ?????????????????????? | | ?????????????????????? ?????????????????????? | | ???????????????????????? ??????????????????????? | | ??????????????????????? ??????????????????????? | | ???????????????????????#???????????????????????? | | ???????????????????????????????????????????????? | | ???????????????????????????????????????????????? | | ???????????????????????????????????????????????? | | ???????????????????????????????????????????????? | | ???????????????????????????????????????????????? | | ???????????????????????????????????????????????? | | ???????????????????????????????????????????????? | | ???????????????????????????????????????????????? | | ???????????????????????????????????????????????? | | ???????????????????????????????????????????????? | | ???????????????????????????????????????????????? | +----------------------------------------------------+ Best States ------------- Heat Dissipation 31 Energy Generation 14 Energy Capacity 280 Matter Stores 300 Matter Capacity 300 Sight Range 16 Terrain Scan Range 14 Terrain Scan Density 10 Armor Coverage 150 Evasion (%) 63 Salvage Targeting 1 Item Schematics ----------------- Arm. Wheel | -9/Materials | Scanalyzed Robot Schematics ------------------ None Fabricated ------------ Nothing Alien Tech Used ----------------- None Achievements -------------- None Challenges ------------ None Game ------ Seed DiametricFireBox Manual? 0 Play Time 00:33:11 Cumulative 9.3 hours Start 2024.07.04 @ 18:44:19 End 2024.07.04 @ 20:00:34 Sessions 1 Manual Loads 0 Difficulty Rogue Special Mode None Game No. 17 Rogue 17 Adventurer 0 Explorer 0 Win Type - Total 0 Types 0/0/0/0/0/0/0/0/0 Lore% 10 Gallery% 13 Achievement% 16 Wizard Run 0 Options --------- Layout 1 ASCII 1 Keyboard 0 Movement Numpad Keybinds 0 Fullscreen 1 Font 24/Proggy Map View 50x35 Zoom Use 0% Tactical HUD 1 Map Filters NONE Filters NONE Steam 0 RUN: f08358b8-a193-4dc4-a5ec-0c045143567b